[Event "Early-Titled-Tuesday-Blitz-February-13-2024"]
[Site "Chess.com"]
[Date "2024.02.13"]
[Round "10"]
[White "Crazy_girl99"]
[Black "CFalcons8"]
[Result "1-0"]
[WhiteElo "2599"]
[BlackElo "2396"]
[TimeControl "180+1"]
[EndTime "10:00:46 PST"]
[Termination "Crazy_girl99 won by resignation"]

1. e4 {[%clk 0:03:00]} 1... e5 {[%clk 0:02:59.3]} 2. Nf3 {[%clk 0:03:00.2]} 2...
Nc6 {[%clk 0:02:59.2]} 3. Bb5 {[%clk 0:02:59.8]} 3... a6 {[%clk 0:02:58.8]} 4.
Ba4 {[%clk 0:03:00.1]} 4... Nf6 {[%clk 0:02:59.7]} 5. O-O {[%clk 0:02:57]} 5...
Be7 {[%clk 0:03:00]} 6. d3 {[%clk 0:02:54.1]} 6... b5 {[%clk 0:03:00.2]} 7. Bb3
{[%clk 0:02:54]} 7... O-O {[%clk 0:03:01.1]} 8. h3 {[%clk 0:02:52.1]} 8... Bb7
{[%clk 0:03:01.1]} 9. c3 {[%clk 0:02:52.6]} 9... d6 {[%clk 0:03:00.3]} 10. Re1
{[%clk 0:02:53]} 10... Na5 {[%clk 0:03:00.3]} 11. Bc2 {[%clk 0:02:52.8]} 11...
c5 {[%clk 0:03:01]} 12. Nbd2 {[%clk 0:02:52.1]} 12... Qc7 {[%clk 0:03:00.6]} 13.
Nf1 {[%clk 0:02:51.3]} 13... Rfe8 {[%clk 0:03:00.5]} 14. Ng3 {[%clk 0:02:50.8]}
14... Bf8 {[%clk 0:02:56.9]} 15. Bg5 {[%clk 0:02:50]} 15... Nd7 {[%clk
0:02:56.3]} 16. Nf5 {[%clk 0:02:49.8]} 16... g6 {[%clk 0:02:56.3]} 17. Nh6+
{[%clk 0:02:49.8]} 17... Kg7 {[%clk 0:02:54.6]} 18. Qd2 {[%clk 0:02:35.5]} 18...
f6 {[%clk 0:02:54]} 19. Be3 {[%clk 0:02:24.2]} 19... d5 {[%clk 0:02:53.9]} 20.
Ng4 {[%clk 0:02:20.4]} 20... dxe4 {[%clk 0:02:52.7]} 21. dxe4 {[%clk 0:02:17.5]}
21... Nc4 {[%clk 0:02:52.8]} 22. Bh6+ {[%clk 0:02:17.7]} 22... Kh8 {[%clk
0:02:49.6]} 23. Qc1 {[%clk 0:02:15.2]} 23... Bxh6 {[%clk 0:02:34.6]} 24. Nxh6
{[%clk 0:02:08.3]} 24... Rad8 {[%clk 0:02:28.5]} 25. Nf7+ {[%clk 0:02:06.5]}
25... Kg7 {[%clk 0:02:28.1]} 26. Nxd8 {[%clk 0:02:01.6]} 26... Rxd8 {[%clk
0:02:29]} 27. b3 {[%clk 0:02:00.5]} 27... Nd6 {[%clk 0:02:29]} 28. Nh2 {[%clk
0:01:59.7]} 28... Nf8 {[%clk 0:02:29.9]} 29. Ng4 {[%clk 0:01:59.3]} 29... Qe7
{[%clk 0:02:25.9]} 30. Qh6+ {[%clk 0:01:57.3]} 30... Kg8 {[%clk 0:02:26.4]} 31.
Rad1 {[%clk 0:01:55]} 31... Bc8 {[%clk 0:02:23.2]} 32. Qe3 {[%clk 0:01:44.7]}
32... Bxg4 {[%clk 0:02:05.7]} 33. hxg4 {[%clk 0:01:45.6]} 33... Ne6 {[%clk
0:02:06.6]} 34. Rd5 {[%clk 0:01:41.8]} 34... Nf4 {[%clk 0:02:06.5]} 35. Rxc5
{[%clk 0:01:36.6]} 35... Qe6 {[%clk 0:02:01.5]} 36. f3 {[%clk 0:01:35]} 36...
Nf7 {[%clk 0:01:55.4]} 37. b4 {[%clk 0:01:31.6]} 37... h5 {[%clk 0:01:46.7]} 38.
Bb3 {[%clk 0:01:29.6]} 38... Qe7 {[%clk 0:01:33.4]} 39. gxh5 {[%clk 0:01:29.7]}
39... gxh5 {[%clk 0:01:29.4]} 40. Rc6 {[%clk 0:01:23.2]} 40... Kh7 {[%clk
0:01:26.2]} 41. Qb6 {[%clk 0:01:20.8]} 41... Rd7 {[%clk 0:00:58.6]} 42. Rxf6
{[%clk 0:01:17.3]} 42... Nd6 {[%clk 0:00:51.7]} 43. Rxf4 {[%clk 0:00:57.8]}
43... exf4 {[%clk 0:00:50.3]} 44. e5 {[%clk 0:00:57.9]} 44... Nc4 {[%clk
0:00:24.1]} 45. Bc2+ {[%clk 0:00:57.6]} 45... Kg8 {[%clk 0:00:21.2]} 46. Qg6+
{[%clk 0:00:57.3]} 46... Kf8 {[%clk 0:00:18.2]} 47. Qxh5 {[%clk 0:00:48.7]}
47... Qg7 {[%clk 0:00:13.9]} 48. e6 {[%clk 0:00:42.7]} 48... Re7 {[%clk
0:00:14.1]} 49. Re4 {[%clk 0:00:28.7]} 49... Ne3 {[%clk 0:00:13.7]} 50. Rxf4+
{[%clk 0:00:25.7]} 50... Kg8 {[%clk 0:00:12.4]} 51. Qg6 {[%clk 0:00:15.2]} 51...
Qxg6 {[%clk 0:00:11.7]} 52. Bxg6 {[%clk 0:00:14.8]} 52... Nd5 {[%clk 0:00:10.7]}
53. Bf7+ {[%clk 0:00:14.7]} 53... Kg7 {[%clk 0:00:09.9]} 54. Rg4+ {[%clk
0:00:13.2]} 54... Kf6 {[%clk 0:00:10.4]} 55. c4 {[%clk 0:00:13.7]} 55... Nxb4
{[%clk 0:00:10]} 56. cxb5 {[%clk 0:00:13.9]} 56... Nxa2 {[%clk 0:00:06.8]} 57.
bxa6 {[%clk 0:00:14.4]} 57... Nc3 {[%clk 0:00:07.3]} 58. Rc4 {[%clk 0:00:13.9]}
58... Nd5 {[%clk 0:00:07.2]} 59. Ra4 {[%clk 0:00:12.6]} 59... Ra7 {[%clk
0:00:06.9]} 60. Kf2 {[%clk 0:00:09.8]} 60... Nc7 {[%clk 0:00:06.9]} 61. g4
{[%clk 0:00:09.4]} 61... Nd5 {[%clk 0:00:05.6]} 62. Kg3 {[%clk 0:00:08.9]} 62...
Nb6 {[%clk 0:00:04.6]} 63. Ra1 {[%clk 0:00:08.4]} 63... Nc4 {[%clk 0:00:04.4]}
64. f4 {[%clk 0:00:08.4]} 64... Nd6 {[%clk 0:00:04.5]} 65. g5+ {[%clk
0:00:08.3]} 65... Kf5 {[%clk 0:00:04.7]} 66. Ra5+ {[%clk 0:00:08.6]} 66... Ke4
{[%clk 0:00:04]} 67. Re5+ {[%clk 0:00:09.3]} 67... Kd4 {[%clk 0:00:04.3]} 68. e7
{[%clk 0:00:09.9]} 68... Rxe7 {[%clk 0:00:03.2]} 69. Rxe7 {[%clk 0:00:09.9]} 1-0

[Event "Early-Titled-Tuesday-Blitz-February-13-2024"]
[Site "Chess.com"]
[Date "2024.02.13"]
[Round "10"]
[White "winniethepooh04"]
[Black "inagreV"]
[Result "0-1"]
[WhiteElo "2525"]
[BlackElo "2380"]
[TimeControl "180+1"]
[EndTime "10:00:53 PST"]
[Termination "inagreV won by checkmate"]

1. d4 {[%clk 0:03:00.9]} 1... Nf6 {[%clk 0:02:59.5]} 2. Nf3 {[%clk 0:03:01.2]}
2... g6 {[%clk 0:02:59.5]} 3. Bf4 {[%clk 0:03:01.8]} 3... Bg7 {[%clk 0:02:59.2]}
4. e3 {[%clk 0:03:02.5]} 4... O-O {[%clk 0:02:59.2]} 5. Be2 {[%clk 0:03:03.1]}
5... b6 {[%clk 0:02:59.1]} 6. O-O {[%clk 0:03:02.1]} 6... Bb7 {[%clk 0:02:58.8]}
7. c4 {[%clk 0:03:02.6]} 7... d6 {[%clk 0:02:58.4]} 8. h3 {[%clk 0:03:02.5]}
8... Nbd7 {[%clk 0:02:58.2]} 9. Nc3 {[%clk 0:03:03.1]} 9... Ne4 {[%clk 0:02:54]}
10. Nxe4 {[%clk 0:03:02.7]} 10... Bxe4 {[%clk 0:02:54.9]} 11. Nd2 {[%clk
0:03:03.4]} 11... Bb7 {[%clk 0:02:54.5]} 12. Bf3 {[%clk 0:03:04.1]} 12... Bxf3
{[%clk 0:02:49.2]} 13. Nxf3 {[%clk 0:03:05]} 13... e5 {[%clk 0:02:47.7]} 14. Bh2
{[%clk 0:03:04.6]} 14... Qe7 {[%clk 0:02:42.7]} 15. Rc1 {[%clk 0:03:02.2]} 15...
f5 {[%clk 0:02:38.9]} 16. b4 {[%clk 0:03:01.9]} 16... a5 {[%clk 0:02:37.8]} 17.
a3 {[%clk 0:03:00.8]} 17... axb4 {[%clk 0:02:34.8]} 18. axb4 {[%clk 0:03:01.7]}
18... g5 {[%clk 0:02:32.6]} 19. dxe5 {[%clk 0:02:42]} 19... dxe5 {[%clk
0:02:29.8]} 20. Qd5+ {[%clk 0:02:41.8]} 20... Kh8 {[%clk 0:02:30.1]} 21. Rfd1
{[%clk 0:02:42]} 21... Rad8 {[%clk 0:02:28.6]} 22. Qc6 {[%clk 0:02:33]} 22... e4
{[%clk 0:02:19.5]} 23. Nxg5 {[%clk 0:02:29.1]} 23... Ne5 {[%clk 0:02:02.7]} 24.
Bxe5 {[%clk 0:02:18.9]} 24... Bxe5 {[%clk 0:01:54.8]} 25. Rxd8 {[%clk
0:02:02.4]} 25... Rxd8 {[%clk 0:01:52.9]} 26. Qe6 {[%clk 0:01:57.4]} 26... Qxe6
{[%clk 0:01:43.6]} 27. Nxe6 {[%clk 0:01:58.3]} 27... Rd2 {[%clk 0:01:37.6]} 28.
c5 {[%clk 0:01:51.2]} 28... Kg8 {[%clk 0:01:33.7]} 29. g3 {[%clk 0:01:38.3]}
29... Kf7 {[%clk 0:01:25.1]} 30. Ng5+ {[%clk 0:01:30.6]} 30... Kg6 {[%clk
0:01:24.8]} 31. h4 {[%clk 0:01:31.2]} 31... bxc5 {[%clk 0:01:16.1]} 32. bxc5
{[%clk 0:01:25.4]} 32... Kh5 {[%clk 0:01:10.9]} 33. c6 {[%clk 0:01:18.4]} 33...
h6 {[%clk 0:00:54.8]} 34. Ne6 {[%clk 0:01:17]} 34... Kg4 {[%clk 0:00:51.5]} 35.
Kg2 {[%clk 0:01:16.1]} 35... Bxg3 {[%clk 0:00:48.9]} 36. Rf1 {[%clk 0:01:08.9]}
36... Bd6 {[%clk 0:00:41.2]} 37. Ng7 {[%clk 0:00:55.6]} 37... Rc2 {[%clk
0:00:36.2]} 38. Ne8 {[%clk 0:00:50]} 38... Rxc6 {[%clk 0:00:32.1]} 39. Rh1
{[%clk 0:00:47.5]} 39... Be5 {[%clk 0:00:24.5]} 40. Rd1 {[%clk 0:00:43.5]} 40...
Kxh4 {[%clk 0:00:19.4]} 41. Rd7 {[%clk 0:00:41]} 41... Re6 {[%clk 0:00:18.4]}
42. Nxc7 {[%clk 0:00:36.4]} 42... Rg6+ {[%clk 0:00:18.1]} 43. Kh1 {[%clk
0:00:31.6]} 43... Kh3 {[%clk 0:00:10.8]} 44. Ne8 {[%clk 0:00:20.3]} 44... Ra6
{[%clk 0:00:03.1]} 45. Rd1 {[%clk 0:00:20.4]} 45... Ra8 {[%clk 0:00:02.7]} 46.
Kg1 {[%clk 0:00:16.5]} 46... Rxe8 {[%clk 0:00:01.4]} 47. Kf1 {[%clk 0:00:17]}
47... Rg8 {[%clk 0:00:02.3]} 48. Ke2 {[%clk 0:00:17.2]} 48... Kh2 {[%clk
0:00:03]} 49. Rd7 {[%clk 0:00:16.7]} 49... Bf6 {[%clk 0:00:03.1]} 50. Rf7 {[%clk
0:00:16.9]} 50... Bg5 {[%clk 0:00:03.6]} 51. Rxf5 {[%clk 0:00:16.7]} 51... Re8
{[%clk 0:00:03.7]} 52. Rf7 {[%clk 0:00:16.7]} 52... Kh3 {[%clk 0:00:03.9]} 53.
Rh7 {[%clk 0:00:17.3]} 53... Kg4 {[%clk 0:00:04.4]} 54. Rf7 {[%clk 0:00:17.4]}
54... h5 {[%clk 0:00:04.9]} 55. Kf1 {[%clk 0:00:15.9]} 55... h4 {[%clk
0:00:05.4]} 56. Kg2 {[%clk 0:00:16.4]} 56... h3+ {[%clk 0:00:05.4]} 57. Kh2
{[%clk 0:00:16.9]} 57... Re5 {[%clk 0:00:05.6]} 58. Rh7 {[%clk 0:00:16.5]} 58...
Rf5 {[%clk 0:00:05.7]} 59. Kg1 {[%clk 0:00:15.8]} 59... Bh4 {[%clk 0:00:05.4]}
60. Rg7+ {[%clk 0:00:16.2]} 60... Rg5 {[%clk 0:00:05.8]} 61. Re7 {[%clk
0:00:13.9]} 61... Kf3+ {[%clk 0:00:05.8]} 62. Kh2 {[%clk 0:00:13.4]} 62... Bxf2
{[%clk 0:00:04.3]} 63. Rf7+ {[%clk 0:00:13.3]} 63... Kxe3 {[%clk 0:00:04.8]} 64.
Kxh3 {[%clk 0:00:13.8]} 64... Ke2 {[%clk 0:00:05.3]} 65. Re7 {[%clk 0:00:13.6]}
65... e3 {[%clk 0:00:05.4]} 66. Rf7 {[%clk 0:00:14]} 66... Rg3+ {[%clk
0:00:05.7]} 67. Kh2 {[%clk 0:00:14.1]} 67... Rg8 {[%clk 0:00:06.6]} 68. Rd7
{[%clk 0:00:14]} 68... Kf1 {[%clk 0:00:06.5]} 69. Rd1+ {[%clk 0:00:13.2]} 69...
Be1 {[%clk 0:00:06.8]} 70. Rd3 {[%clk 0:00:11.3]} 70... e2 {[%clk 0:00:05.2]}
71. Rf3+ {[%clk 0:00:11.7]} 71... Bf2 {[%clk 0:00:05.9]} 72. Rh3 {[%clk
0:00:08.3]} 72... Bg1+ {[%clk 0:00:04.8]} 73. Kh1 {[%clk 0:00:08.2]} 73... e1=Q
{[%clk 0:00:05]} 74. Re3 {[%clk 0:00:06.5]} 74... Qh4+ {[%clk 0:00:04.7]} 75.
Rh3 {[%clk 0:00:06.6]} 75... Qxh3# {[%clk 0:00:05.4]} 0-1

[Event "Early-Titled-Tuesday-Blitz-February-13-2024"]
[Site "Chess.com"]
[Date "2024.02.13"]
[Round "10"]
[White "ValentinDragnev"]
[Black "starworld123"]
[Result "1/2-1/2"]
[WhiteElo "2759"]
[BlackElo "2840"]
[TimeControl "180+1"]
[EndTime "10:01:15 PST"]
[Termination "Game drawn by repetition"]

1. e4 {[%clk 0:02:57.3]} 1... c5 {[%clk 0:02:56.9]} 2. Nc3 {[%clk 0:02:56.6]}
2... Nc6 {[%clk 0:02:55.9]} 3. Nf3 {[%clk 0:02:56.4]} 3... e5 {[%clk 0:02:54.2]}
4. Bc4 {[%clk 0:02:56.3]} 4... Be7 {[%clk 0:02:50.3]} 5. d3 {[%clk 0:02:56.6]}
5... d6 {[%clk 0:02:49.2]} 6. Nd2 {[%clk 0:02:56.1]} 6... Nf6 {[%clk 0:02:48.6]}
7. Nf1 {[%clk 0:02:56.4]} 7... Bg4 {[%clk 0:02:49]} 8. f3 {[%clk 0:02:56.4]}
8... Be6 {[%clk 0:02:49.7]} 9. Ne3 {[%clk 0:02:57.1]} 9... O-O {[%clk
0:02:48.8]} 10. O-O {[%clk 0:02:57.6]} 10... Nd4 {[%clk 0:02:45]} 11. a4 {[%clk
0:02:56.3]} 11... Nd7 {[%clk 0:02:39]} 12. Ncd5 {[%clk 0:02:52]} 12... Nb6
{[%clk 0:02:35.8]} 13. c3 {[%clk 0:02:51.9]} 13... Nc6 {[%clk 0:02:31.6]} 14. a5
{[%clk 0:02:52.3]} 14... Nxc4 {[%clk 0:02:30.4]} 15. dxc4 {[%clk 0:02:46.8]}
15... Bg5 {[%clk 0:02:17.1]} 16. a6 {[%clk 0:02:46.4]} 16... b6 {[%clk
0:02:15.6]} 17. Qa4 {[%clk 0:02:43]} 17... Na5 {[%clk 0:02:06.4]} 18. Rd1 {[%clk
0:02:20.5]} 18... Qe8 {[%clk 0:01:36.6]} 19. Qa2 {[%clk 0:01:46.5]} 19... Bd8
{[%clk 0:01:35.6]} 20. b4 {[%clk 0:01:36.9]} 20... Nc6 {[%clk 0:01:36.2]} 21. b5
{[%clk 0:01:35.4]} 21... Ne7 {[%clk 0:01:35.4]} 22. Qe2 {[%clk 0:01:23.2]} 22...
Nxd5 {[%clk 0:01:32.9]} 23. Nxd5 {[%clk 0:01:15.6]} 23... f5 {[%clk 0:01:19.9]}
24. exf5 {[%clk 0:01:15.1]} 24... Bxf5 {[%clk 0:01:18.9]} 25. Ne3 {[%clk
0:01:09.4]} 25... Qg6 {[%clk 0:01:14.3]} 26. Nxf5 {[%clk 0:01:07.1]} 26... Rxf5
{[%clk 0:01:13]} 27. Be3 {[%clk 0:01:07.5]} 27... Be7 {[%clk 0:01:10.5]} 28. Rd5
{[%clk 0:00:52]} 28... Raf8 {[%clk 0:01:08.4]} 29. Rf1 {[%clk 0:00:52.7]} 29...
Rh5 {[%clk 0:01:02.7]} 30. Qd3 {[%clk 0:00:40.5]} 30... Qxd3 {[%clk 0:00:54.8]}
31. Rxd3 {[%clk 0:00:41.4]} 31... Rhf5 {[%clk 0:00:31.1]} 32. Rd5 {[%clk
0:00:35.6]} 32... g5 {[%clk 0:00:21.2]} 33. h3 {[%clk 0:00:29.7]} 33... h6
{[%clk 0:00:17.8]} 34. Bc1 {[%clk 0:00:26.9]} 34... Kf7 {[%clk 0:00:17.5]} 35.
g4 {[%clk 0:00:24.6]} 35... Rf6 {[%clk 0:00:17.6]} 36. Kg2 {[%clk 0:00:25]}
36... Ke6 {[%clk 0:00:18.3]} 37. Rd3 {[%clk 0:00:17.5]} 37... R6f7 {[%clk
0:00:15.6]} 38. Re1 {[%clk 0:00:17.9]} 38... Rh8 {[%clk 0:00:12.4]} 39. Be3
{[%clk 0:00:16.2]} 39... h5 {[%clk 0:00:11.9]} 40. Bf2 {[%clk 0:00:14.9]} 40...
Rhf8 {[%clk 0:00:07]} 41. Bg3 {[%clk 0:00:14]} 41... h4 {[%clk 0:00:05.3]} 42.
Bh2 {[%clk 0:00:10.5]} 42... Rf6 {[%clk 0:00:06]} 43. Re4 {[%clk 0:00:09.8]}
43... R6f7 {[%clk 0:00:06.2]} 44. Rd2 {[%clk 0:00:08.9]} 44... Bd8 {[%clk
0:00:05.3]} 45. Rd3 {[%clk 0:00:08.4]} 45... Be7 {[%clk 0:00:05.8]} 46. Bg1
{[%clk 0:00:08.1]} 46... Rf6 {[%clk 0:00:05.4]} 47. Bf2 {[%clk 0:00:07.1]} 47...
R6f7 {[%clk 0:00:05.8]} 48. Be1 {[%clk 0:00:07.6]} 48... Rf4 {[%clk 0:00:06.4]}
49. Rde3 {[%clk 0:00:05.6]} 49... R4f7 {[%clk 0:00:05.5]} 50. Bd2 {[%clk
0:00:05.6]} 50... Rf6 {[%clk 0:00:05.6]} 51. Rd3 {[%clk 0:00:05.7]} 51... R6f7
{[%clk 0:00:06.3]} 52. Bc1 {[%clk 0:00:06.1]} 52... Bf6 {[%clk 0:00:04.9]} 53.
Kf2 {[%clk 0:00:05.6]} 53... Be7 {[%clk 0:00:05.3]} 54. Ke2 {[%clk 0:00:05.8]}
54... Bf6 {[%clk 0:00:05.9]} 55. Bd2 {[%clk 0:00:06.2]} 55... Be7 {[%clk
0:00:06.5]} 56. Rde3 {[%clk 0:00:05.6]} 56... Bd8 {[%clk 0:00:06.4]} 57. Rd3
{[%clk 0:00:05.9]} 57... Be7 {[%clk 0:00:05.5]} 58. Be1 {[%clk 0:00:06.3]} 58...
Rf4 {[%clk 0:00:05.5]} 59. Rde3 {[%clk 0:00:05.7]} 59... R4f7 {[%clk 0:00:05.5]}
60. Bd2 {[%clk 0:00:05.5]} 60... Kd7 {[%clk 0:00:05.3]} 61. Rd3 {[%clk
0:00:04.3]} 61... Kc7 {[%clk 0:00:05.6]} 62. Bc1 {[%clk 0:00:04]} 62... Bf6
{[%clk 0:00:05.9]} 63. Bd2 {[%clk 0:00:03.3]} 63... Rd8 {[%clk 0:00:06.4]} 64.
Bc1 {[%clk 0:00:02.9]} 64... Rfd7 {[%clk 0:00:07]} 65. Ree3 {[%clk 0:00:01.7]}
65... Re7 {[%clk 0:00:06.5]} 66. Rd5 {[%clk 0:00:01.7]} 66... Rf7 {[%clk
0:00:06]} 67. Re4 {[%clk 0:00:02.4]} 67... Rdf8 {[%clk 0:00:06.5]} 68. Rd3
{[%clk 0:00:03.1]} 68... Be7 {[%clk 0:00:07.1]} 69. Bd2 {[%clk 0:00:03.7]} 69...
Bd8 {[%clk 0:00:06.9]} 70. Bc1 {[%clk 0:00:04.3]} 70... Be7 {[%clk 0:00:07.4]}
71. Bd2 {[%clk 0:00:04.8]} 71... Rd8 {[%clk 0:00:08]} 72. Bc1 {[%clk 0:00:05.3]}
72... Bf6 {[%clk 0:00:07.7]} 73. Ree3 {[%clk 0:00:05.2]} 73... Rfd7 {[%clk
0:00:08.3]} 74. Rd5 {[%clk 0:00:05]} 74... Rf8 {[%clk 0:00:06.8]} 75. Re4 {[%clk
0:00:04.9]} 75... Rdf7 {[%clk 0:00:06.5]} 76. Rd3 {[%clk 0:00:04.8]} 76... Be7
{[%clk 0:00:06.3]} 1/2-1/2

[Event "Early-Titled-Tuesday-Blitz-February-13-2024"]
[Site "Chess.com"]
[Date "2024.02.13"]
[Round "10"]
[White "JonasEilenberg"]
[Black "kylelancman"]
[Result "0-1"]
[WhiteElo "2583"]
[BlackElo "2457"]
[TimeControl "180+1"]
[EndTime "10:01:20 PST"]
[Termination "kylelancman won by checkmate"]

1. d4 {[%clk 0:03:00.9]} 1... d5 {[%clk 0:02:55.3]} 2. c4 {[%clk 0:03:01.2]}
2... e6 {[%clk 0:02:56]} 3. Nc3 {[%clk 0:03:01.3]} 3... Nf6 {[%clk 0:02:56.6]}
4. cxd5 {[%clk 0:03:01.9]} 4... Nxd5 {[%clk 0:02:57.5]} 5. e4 {[%clk 0:03:01.5]}
5... Nxc3 {[%clk 0:02:57.7]} 6. bxc3 {[%clk 0:03:02.4]} 6... c5 {[%clk 0:02:58]}
7. Rb1 {[%clk 0:03:01.7]} 7... Be7 {[%clk 0:02:53.3]} 8. Nf3 {[%clk 0:03:01.7]}
8... O-O {[%clk 0:02:50.9]} 9. Bc4 {[%clk 0:03:01.8]} 9... Qc7 {[%clk
0:02:48.6]} 10. d5 {[%clk 0:02:56]} 10... exd5 {[%clk 0:02:45.8]} 11. exd5
{[%clk 0:02:56.9]} 11... Bg4 {[%clk 0:02:42]} 12. O-O {[%clk 0:02:54]} 12... Nd7
{[%clk 0:02:40.4]} 13. Re1 {[%clk 0:02:42.4]} 13... Bd6 {[%clk 0:02:39.4]} 14.
h3 {[%clk 0:02:33.1]} 14... Bh5 {[%clk 0:02:35.6]} 15. Bd3 {[%clk 0:02:26.1]}
15... Rae8 {[%clk 0:02:23.5]} 16. Bxh7+ {[%clk 0:02:10]} 16... Kxh7 {[%clk
0:02:24.4]} 17. Ng5+ {[%clk 0:02:10]} 17... Kg6 {[%clk 0:02:18.1]} 18. Qc2+
{[%clk 0:01:51.3]} 18... f5 {[%clk 0:02:14]} 19. Ne6 {[%clk 0:01:51.4]} 19...
Kh7 {[%clk 0:01:50.2]} 20. g4 {[%clk 0:01:40.1]} 20... Bh2+ {[%clk 0:01:26.3]}
21. Kg2 {[%clk 0:01:35]} 21... Qd6 {[%clk 0:01:09.6]} 22. gxh5 {[%clk
0:01:26.6]} 22... Qxd5+ {[%clk 0:01:04.3]} 23. Kxh2 {[%clk 0:01:26.9]} 23...
Rxe6 {[%clk 0:01:04.2]} 24. Rxe6 {[%clk 0:01:27.2]} 24... Qxe6 {[%clk
0:01:03.7]} 25. Bf4 {[%clk 0:01:28.1]} 25... Qe4 {[%clk 0:00:57.9]} 26. Qxe4
{[%clk 0:01:12]} 26... fxe4 {[%clk 0:00:58.8]} 27. Bg3 {[%clk 0:01:12.8]} 27...
b6 {[%clk 0:00:54]} 28. Rd1 {[%clk 0:01:02.7]} 28... Nf6 {[%clk 0:00:53.6]} 29.
Rd6 {[%clk 0:01:03.4]} 29... Nxh5 {[%clk 0:00:44.4]} 30. Be5 {[%clk 0:01:01]}
30... Rxf2+ {[%clk 0:00:42.5]} 31. Kg1 {[%clk 0:00:58.7]} 31... Rf5 {[%clk
0:00:42.3]} 32. Re6 {[%clk 0:00:54.5]} 32... Nf6 {[%clk 0:00:27.6]} 33. Re7
{[%clk 0:00:50.5]} 33... Kg6 {[%clk 0:00:23.9]} 34. h4 {[%clk 0:00:40.1]} 34...
Rf3 {[%clk 0:00:21.6]} 35. Kg2 {[%clk 0:00:34.3]} 35... Rd3 {[%clk 0:00:19.9]}
36. Rxa7 {[%clk 0:00:33.3]} 36... Rd2+ {[%clk 0:00:15.3]} 37. Kf1 {[%clk
0:00:32]} 37... Kf5 {[%clk 0:00:14.7]} 38. Bc7 {[%clk 0:00:26.8]} 38... e3
{[%clk 0:00:06.3]} 39. Bxb6 {[%clk 0:00:23.1]} 39... Ne4 {[%clk 0:00:05.1]} 40.
Re7 {[%clk 0:00:17.7]} 40... Rf2+ {[%clk 0:00:03.6]} 41. Ke1 {[%clk 0:00:17.2]}
41... Rxa2 {[%clk 0:00:01.9]} 42. Bc7 {[%clk 0:00:14.4]} 42... Nxc3 {[%clk
0:00:01.4]} 43. Rxe3 {[%clk 0:00:13.5]} 43... Ra1+ {[%clk 0:00:01.3]} 44. Kd2
{[%clk 0:00:13.4]} 44... Ne4+ {[%clk 0:00:01.5]} 45. Kc2 {[%clk 0:00:13.2]}
45... Ra2+ {[%clk 0:00:02]} 46. Kb3 {[%clk 0:00:12.2]} 46... Rf2 {[%clk
0:00:02.2]} 47. Kc4 {[%clk 0:00:11.2]} 47... Nf6 {[%clk 0:00:02.7]} 48. Kxc5
{[%clk 0:00:10.4]} 48... Rc2+ {[%clk 0:00:03]} 49. Kd6 {[%clk 0:00:09.2]} 49...
Ne4+ {[%clk 0:00:03.3]} 50. Kd7 {[%clk 0:00:08.6]} 50... Nf6+ {[%clk 0:00:03.8]}
51. Kd8 {[%clk 0:00:08.7]} 51... Rd2+ {[%clk 0:00:04.4]} 52. Kc8 {[%clk
0:00:08.4]} 52... Rc2 {[%clk 0:00:04.7]} 53. Kb8 {[%clk 0:00:05.9]} 53... Rxc7
{[%clk 0:00:04.5]} 54. Rf3+ {[%clk 0:00:06.4]} 54... Kg4 {[%clk 0:00:04.3]} 55.
Rf1 {[%clk 0:00:05.5]} 55... Rf7 {[%clk 0:00:03.5]} 56. Rh1 {[%clk 0:00:05.1]}
56... Nh5 {[%clk 0:00:02.8]} 57. Rg1+ {[%clk 0:00:05.7]} 57... Ng3 {[%clk
0:00:02.7]} 58. Rh1 {[%clk 0:00:06.6]} 58... Rf6 {[%clk 0:00:02.7]} 59. Kc8
{[%clk 0:00:07.5]} 59... Rh6 {[%clk 0:00:02.8]} 60. Rg1 {[%clk 0:00:08.3]} 60...
Rxh4 {[%clk 0:00:03.2]} 61. Ra1 {[%clk 0:00:09.1]} 61... Rh6 {[%clk 0:00:03.8]}
62. Ra4+ {[%clk 0:00:09.5]} 62... Kg5 {[%clk 0:00:03.9]} 63. Ra3 {[%clk
0:00:10.4]} 63... Nf5 {[%clk 0:00:04.1]} 64. Ra4 {[%clk 0:00:10.7]} 64... Rf6
{[%clk 0:00:04.2]} 65. Kd7 {[%clk 0:00:11.2]} 65... Kh6 {[%clk 0:00:03.7]} 66.
Ra5 {[%clk 0:00:10.2]} 66... Kg6 {[%clk 0:00:03.5]} 67. Ra4 {[%clk 0:00:10.8]}
67... Nh6 {[%clk 0:00:03.9]} 68. Ra3 {[%clk 0:00:10.6]} 68... Kf7 {[%clk
0:00:04.5]} 69. Rg3 {[%clk 0:00:11]} 69... Ng8 {[%clk 0:00:05.2]} 70. Re3 {[%clk
0:00:10]} 70... g5 {[%clk 0:00:04.1]} 71. Rg3 {[%clk 0:00:10.5]} 71... Kg6
{[%clk 0:00:04.5]} 72. Rg1 {[%clk 0:00:08.9]} 72... Nh6 {[%clk 0:00:05.1]} 73.
Ke7 {[%clk 0:00:08.7]} 73... g4 {[%clk 0:00:05.4]} 74. Rh1 {[%clk 0:00:07.8]}
74... Kg5 {[%clk 0:00:04.9]} 75. Rg1 {[%clk 0:00:06]} 75... Ra6 {[%clk
0:00:03.8]} 76. Rb1 {[%clk 0:00:04]} 76... Nf5+ {[%clk 0:00:04]} 77. Kf7 {[%clk
0:00:03.6]} 77... g3 {[%clk 0:00:04.9]} 78. Rb3 {[%clk 0:00:02.3]} 78... Rf6+
{[%clk 0:00:04.9]} 79. Kg8 {[%clk 0:00:01.6]} 79... Kg4 {[%clk 0:00:04.6]} 80.
Rb4+ {[%clk 0:00:01.4]} 80... Kf3 {[%clk 0:00:03.8]} 81. Rb3+ {[%clk 0:00:02.3]}
81... Ne3 {[%clk 0:00:03.5]} 82. Rb4 {[%clk 0:00:02.8]} 82... g2 {[%clk
0:00:03.8]} 83. Rb1 {[%clk 0:00:03.5]} 83... Kf2 {[%clk 0:00:03.5]} 84. Rb2+
{[%clk 0:00:03.7]} 84... Kg1 {[%clk 0:00:03.6]} 85. Rb1+ {[%clk 0:00:04.6]}
85... Rf1 {[%clk 0:00:02]} 86. Rb2 {[%clk 0:00:05.3]} 86... Kh1 {[%clk
0:00:01.7]} 87. Rb4 {[%clk 0:00:04.9]} 87... g1=Q+ {[%clk 0:00:02.3]} 88. Kh8
{[%clk 0:00:04.7]} 88... Rf8+ {[%clk 0:00:02.2]} 89. Kh7 {[%clk 0:00:05.3]}
89... Rf7+ {[%clk 0:00:02.7]} 90. Kh6 {[%clk 0:00:06.2]} 90... Nf5+ {[%clk
0:00:02.5]} 91. Kh5 {[%clk 0:00:06.2]} 91... Rh7# {[%clk 0:00:03.4]} 0-1

[Event "Early-Titled-Tuesday-Blitz-February-13-2024"]
[Site "Chess.com"]
[Date "2024.02.13"]
[Round "11"]
[White "traviscottofficial"]
[Black "rhungaski"]
[Result "1-0"]
[WhiteElo "2682"]
[BlackElo "2516"]
[TimeControl "180+1"]
[EndTime "10:04:21 PST"]
[Termination "traviscottofficial won by resignation"]

1. d4 {[%clk 0:02:59.7]} 1... g6 {[%clk 0:02:59.8]} 2. Nf3 {[%clk 0:02:59.3]}
2... Bg7 {[%clk 0:02:59.5]} 3. c4 {[%clk 0:02:59.5]} 3... d6 {[%clk 0:02:59.7]}
4. Nc3 {[%clk 0:02:59.7]} 4... Nf6 {[%clk 0:02:59.5]} 5. g3 {[%clk 0:03:00]}
5... O-O {[%clk 0:02:59.4]} 6. Bg2 {[%clk 0:03:00.8]} 6... Nc6 {[%clk
0:02:59.7]} 7. O-O {[%clk 0:03:01.4]} 7... e5 {[%clk 0:02:59.8]} 8. dxe5 {[%clk
0:03:01.3]} 8... Nxe5 {[%clk 0:03:00.7]} 9. Nxe5 {[%clk 0:03:01.4]} 9... dxe5
{[%clk 0:03:01.6]} 10. Qxd8 {[%clk 0:03:01.3]} 10... Rxd8 {[%clk 0:03:02.5]} 11.
Bg5 {[%clk 0:03:01.4]} 11... Rd7 {[%clk 0:03:02.3]} 12. Rad1 {[%clk 0:02:51.2]}
12... h6 {[%clk 0:03:00]} 13. Bxf6 {[%clk 0:02:49]} 13... Bxf6 {[%clk
0:02:58.7]} 14. Bxb7 {[%clk 0:02:32.7]} 14... Rxd1 {[%clk 0:02:38.5]} 15. Bxa8
{[%clk 0:02:32.5]} 15... Rd2 {[%clk 0:02:37.7]} 16. Ne4 {[%clk 0:02:31.1]} 1-0